bitfinex/quotes_BTCUSD_20241124
["timestamp","ask_amount","ask_price","bid_price","bid_amount"]
[1732471993202,0.0768116,95967.0,95961.0,0.0017106]
[1732471993439,0.0768116,95967.0,95961.0,0.0433936]
[1732471994105,0.0768116,95967.0,95961.0,0.0017106]
[1732471995478,0.1810136,95967.0,95961.0,0.0017106]
[1732471995683,0.0768116,95967.0,95961.0,0.0017106]
[1732471996871,0.1810146,95967.0,95961.0,0.0017106]
[1732471997520,0.0008553,95967.0,95961.0,0.0017106]
[1732471997727,0.0008553,95967.0,95966.0,0.041681]
[1732471998630,0.0008553,95967.0,95966.0,0.14369527]
[1732472003553,0.0008553,95967.0,95961.0,0.0017106]
[1732472003999,0.0766,95966.0,95961.0,0.0017106]
[1732472004643,0.104207,95962.0,95961.0,0.0017106]
[1732472005064,0.1263,95966.0,95961.0,0.0017106]
[1732472005273,0.15941718,95966.0,95961.0,0.0017106]
[1732472005908,0.104205,95965.0,95961.0,0.0017106]
[1732472006108,0.15941718,95966.0,95961.0,0.0017106]
[1732472006900,0.1263,95966.0,95961.0,0.0017106]
[1732472008592,0.0008553,95967.0,95966.0,0.041681]
[1732472008814,0.0008553,95967.0,95966.0,0.14369527]
[1732472010972,0.0008553,95967.0,95963.0,0.041682]
[1732472011242,0.0008553,95967.0,95962.0,0.041683]
[1732472011401,0.0008553,95967.0,95965.0,0.041681]
[1732472011813,0.0008553,95967.0,95964.0,0.041682]
[1732472012203,0.0008553,95967.0,95962.0,0.10201427]
[1732472012435,0.0008553,95967.0,95965.0,0.041681]
[1732472012840,0.0008553,95967.0,95962.0,0.14369627]
[1732472012841,0.0008553,95967.0,95963.0,0.041682]
[1732472013110,0.0008553,95967.0,95964.0,0.041682]
[1732472013569,0.0008553,95967.0,95965.0,0.041681]
[1732472014840,0.0008553,95967.0,95963.0,0.041682]
[1732472015269,0.0008553,95967.0,95965.0,0.041681]
[1732472017489,0.0008553,95967.0,95963.0,0.041682]
[1732472017694,0.0008553,95967.0,95965.0,0.041681]
[1732472018110,0.0008553,95967.0,95962.0,0.10201427]
[1732472018552,0.104207,95962.0,95961.0,0.0017106]
[1732472019238,0.208409,95965.0,95961.0,0.0017106]
[1732472019478,0.104207,95963.0,95961.0,0.0017106]
[1732472019923,0.0791,95966.0,95961.0,0.0017106]
[1732472020138,0.104207,95963.0,95961.0,0.0017106]
[1732472021480,0.0342397,95964.0,95961.0,0.0017106]
[1732472021709,0.104207,95962.0,95961.0,0.0017106]
[1732472041919,0.150307,95962.0,95961.0,0.0017106]
[1732472042132,0.228007,95962.0,95961.0,0.0017106]
[1732472042748,0.33002127,95962.0,95961.0,0.0017106]
[1732472043208,0.53002127,95962.0,95961.0,0.0017106]
[1732472043410,0.68002127,95962.0,95961.0,0.0017106]
[1732472043845,0.68202127,95962.0,95961.0,0.0017106]
[1732472044421,0.68202127,95962.0,95961.0,6e-07]
[1732472044627,0.88202127,95962.0,95961.0,6e-07]
[1732472045367,0.90502127,95962.0,95961.0,6e-07]
[1732472045992,0.90502127,95962.0,95953.0,0.00018633]
[1732472045993,0.584616,95954.0,95953.0,0.00014693]
[1732472046228,0.68663027,95954.0,95953.0,0.00014693]
[1732472047828,0.90763027,95954.0,95953.0,0.00014693]
[1732472048981,0.9412121,95954.0,95953.0,0.00014693]
[1732472051595,0.9392121,95954.0,95953.0,0.00014693]
[1732472052002,0.9412121,95954.0,95953.0,0.00014693]
[1732472052689,0.96160102,95954.0,95953.0,0.00014693]
[1732472053101,0.95960102,95954.0,95953.0,0.00014693]
[1732472053762,0.96160102,95954.0,95953.0,0.00014693]
[1732472055309,0.95960102,95954.0,95953.0,0.00014693]
[1732472056821,0.96160102,95954.0,95953.0,0.00014693]
[1732472058957,0.96160102,95954.0,95953.0,0.00185733]
[1732472059476,1.06388891,95954.0,95953.0,0.0017104]
[1732472061550,0.95960102,95954.0,95953.0,0.0017104]
[1732472061783,0.96160102,95954.0,95953.0,0.0017104]
[1732472062480,0.95960102,95954.0,95953.0,0.0017104]
[1732472062701,0.96160102,95954.0,95953.0,0.0017104]
[1732472063852,1.06458818,95954.0,95953.0,0.0017104]
[1732472064320,0.454219,95951.0,95950.0,0.4517104]
[1732472064573,0.65954731,95951.0,95950.0,0.4517104]
[1732472066153,0.65754731,95951.0,95950.0,0.4517104]
[1732472067496,0.65954731,95951.0,95950.0,0.4517104]
[1732472067928,0.65754731,95951.0,95950.0,0.4517104]
[1732472068159,0.55423327,95951.0,95950.0,0.4517104]
[1732472068400,0.65370905,95951.0,95950.0,0.4517104]
[1732472070503,0.35623327,95951.0,95950.0,0.4517104]
[1732472070975,0.55423327,95951.0,95950.0,0.4517104]
[1732472071643,0.55423327,95951.0,95950.0,0.4534208]
[1732472074802,0.55423327,95951.0,95950.0,0.4261958]
[1732472078303,0.55623327,95951.0,95950.0,0.4261958]
[1732472078524,0.55423327,95951.0,95950.0,0.4261958]
[1732472078743,0.55623327,95951.0,95950.0,0.4261958]
[1732472083223,0.55423327,95951.0,95950.0,0.4261958]
[1732472085118,0.55623327,95951.0,95950.0,0.4261958]
[1732472088052,0.55423327,95951.0,95950.0,0.4261958]
[1732472088266,0.55623327,95951.0,95950.0,0.4261958]
[1732472089002,0.55423327,95951.0,95950.0,0.4261958]
[1732472090625,0.55623327,95951.0,95950.0,0.4261958]
[1732472091043,0.55423327,95951.0,95950.0,0.4261958]
[1732472091426,0.55623327,95951.0,95950.0,0.4261958]
[1732472092295,0.55423327,95951.0,95950.0,0.4261958]
[1732472094663,0.35623327,95951.0,95950.0,0.4261958]
[1732472097733,0.35708867,95951.0,95950.0,0.4261958]
[1732472100852,0.1050744,95951.0,95950.0,0.4261958]
[1732472101073,0.1050744,95951.0,95950.0,0.5537958]
[1732472102156,0.0008554,95951.0,95950.0,0.5537958]
[1732472103055,0.0008554,95951.0,95950.0,0.5954838]
[1732472104107,0.0008554,95951.0,95950.0,0.5537958]
[1732472104561,0.0008554,95951.0,95950.0,0.5954838]
[1732472105003,0.0008554,95951.0,95950.0,0.5537958]
[1732472105936,0.0008554,95951.0,95950.0,0.5954838]
[1732472111212,0.0008554,95951.0,95950.0,0.5537958]
[1732472114636,0.0008554,95951.0,95950.0,0.5954838]
[1732472114841,0.0008554,95951.0,95950.0,0.5537958]
[1732472116412,0.1050744,95951.0,95950.0,0.4261958]
[1732472117326,0.20708867,95951.0,95950.0,0.4261958]
[1732472119527,0.24090709,95951.0,95950.0,0.4261958]
[1732472130310,0.24090709,95951.0,95950.0,0.4162358]
[1732472131461,0.24290709,95951.0,95950.0,0.4162358]
[1732472131620,0.24090709,95951.0,95950.0,0.4162358]
[1732472137169,0.13889282,95951.0,95950.0,0.4162358]
[1732472143553,0.24450587,95951.0,95950.0,0.4162358]
[1732472143784,0.03467382,95951.0,95950.0,0.4162358]
[1732472144034,0.0008554,95951.0,95950.0,0.5435358]
[1732472144268,0.0008554,95951.0,95950.0,0.5852238]
[1732472145133,0.0008554,95951.0,95950.0,0.71223807]
[1732472145339,0.0001,95976.0,95966.0,0.041681]
[1732472145544,0.104194,95975.0,95966.0,0.168981]
[1732472145767,0.0001,95976.0,95966.0,0.168981]
[1732472146229,0.208388,95975.0,95966.0,0.1273]
[1732472146442,0.0001,95976.0,95966.0,0.168981]
[1732472147765,0.0001,95976.0,95966.0,0.17002292]
[1732472149199,0.00070837,95967.0,95966.0,0.17002292]
[1732472151635,0.00070837,95967.0,95966.0,0.17202292]
[1732472155552,0.00070837,95967.0,95966.0,0.29703719]
[1732472155706,0.00070837,95967.0,95966.0,0.29599527]
[1732472158435,0.0008563,96009.0,95974.0,0.002]
[1732472158690,0.0008563,96009.0,96008.0,0.041663]
[1732472158887,0.041587,96036.0,96009.0,0.1225]
[1732472159113,0.198,96055.0,96012.0,0.023]
[1732472159309,0.10286967,96047.0,96038.0,0.04165]
[1732472159524,0.0008554,96047.0,96038.0,0.0774]
[1732472159748,0.0008554,96047.0,96045.0,0.041646]
[1732472160002,0.0102395,96049.0,96046.0,0.12183585]
[1732472160238,0.0102395,96049.0,96048.0,0.064645]
[1732472160482,0.0008556,96063.0,96062.0,0.041639]
[1732472160917,0.0008556,96063.0,96062.0,0.164139]
[1732472161125,0.0008556,96063.0,96062.0,0.187139]
[1732472161367,0.30912538,96078.0,96077.0,0.052041]
[1732472161572,0.13956151,96085.0,96078.0,0.052041]
[1732472161804,0.13956151,96085.0,96082.0,0.075038]
[1732472162245,0.24890284,96089.0,96085.0,0.023]
[1732472162453,0.24890284,96089.0,96088.0,0.075035]
[1732472162660,0.24890284,96089.0,96088.0,0.17904927]
[1732472163313,0.23890284,96089.0,96088.0,0.17904927]
[1732472165305,0.31368567,96122.0,96088.0,0.17904927]
[1732472165306,1.0999097,96117.0,96091.0,0.277034]
[1732472165532,0.0143841,96145.0,96091.0,0.52904827]
[1732472165752,2e-05,96092.0,96091.0,0.52904827]
[1732472166404,2e-05,96092.0,96091.0,0.32904827]
[1732472166643,2e-05,96092.0,96091.0,0.17904827]
[1732472166853,2e-05,96092.0,96091.0,0.32904827]
[1732472167059,0.406046,96133.0,96111.0,0.023]
[1732472167291,0.406046,96133.0,96096.0,0.023]
[1732472167496,0.104029,96127.0,96109.0,0.052023]
[1732472167700,0.20806,96126.0,96110.0,0.023]
[1732472168142,0.406046,96133.0,96103.0,0.023]
[1732472168358,0.208064,96125.0,96106.0,0.023]
[1732472168582,0.208077,96119.0,96103.0,0.023]
[1732472168817,0.208064,96125.0,96100.0,0.023]
[1732472169044,0.17971427,96115.0,96090.0,0.002]
[1732472169286,0.208086,96114.0,96109.0,0.40355324]
[1732472169514,0.208086,96114.0,96071.0,0.50798058]
[1732472169515,0.10201427,96114.0,96105.0,0.40355324]
[1732472169780,0.104052,96105.0,96104.0,0.40355324]
[1732472170027,0.10201427,96114.0,96091.0,0.40338572]
[1732472170028,0.104066,96092.0,96091.0,0.40338572]
[1732472170257,0.03750137,96104.0,96085.0,0.40338572]
[1732472170471,0.0468,96099.0,96096.0,0.27316336]
[1732472170730,0.0468,96099.0,96090.0,0.27316336]
[1732472170731,0.104068,96091.0,96090.0,0.27316336]
[1732472170966,0.104068,96091.0,96077.0,0.27316336]
[1732472170967,0.20814,96089.0,96077.0,0.27316336]
[1732472171214,0.20814,96089.0,96077.0,0.27325847]
[1732472171215,0.104082,96078.0,96077.0,0.27325847]
[1732472171450,0.104089,96071.0,96070.0,0.27325847]
[1732472171656,0.20817,96075.0,96067.0,0.27329757]
[1732472171874,0.104094,96067.0,96066.0,0.27329757]
[1732472172087,0.104094,96067.0,96060.0,0.27329757]
[1732472172310,0.104094,96067.0,96043.0,0.10201427]
[1732472172311,0.208151,96084.0,96057.0,0.002]
[1732472172520,0.104087,96073.0,96072.0,0.27331042]
[1732472172734,0.104088,96072.0,96071.0,0.27329674]
[1732472172955,0.104086,96075.0,96071.0,0.29629674]
[1732472173165,0.104081,96079.0,96072.0,0.29629674]
[1732472173373,0.104087,96073.0,96072.0,0.29629674]
[1732472173595,0.20610127,96073.0,96072.0,0.27329674]
[1732472173809,0.20610127,96073.0,96049.0,0.002]
[1732472173810,0.20817407,96073.0,96069.0,0.27329674]
[1732472174021,0.104099,96062.0,96061.0,0.27329674]
[1732472174260,0.33943879,96083.0,96061.0,0.27329674]
[1732472174480,0.20040718,96082.0,96081.0,0.18219555]
[1732472174702,0.19840718,96082.0,96081.0,0.18219555]
[1732472174920,0.19840718,96082.0,96079.0,0.18219555]
[1732472174921,0.09433018,96082.0,96079.0,0.18219555]
[1732472175130,0.104083,96077.0,96076.0,0.023]
[1732472175569,0.104084,96076.0,96075.0,0.20519555]
[1732472175798,0.104084,96076.0,96075.0,0.023]
[1732472176019,0.104085,96075.0,96074.0,0.20519555]
[1732472176260,0.03397273,96083.0,96074.0,0.20519555]
[1732472176495,0.208131,96094.0,96081.0,0.1822193]
[1732472176496,0.15,96093.0,96081.0,0.1822193]
[1732472176718,0.208149,96085.0,96084.0,0.20519557]
[1732472176934,0.358133,96093.0,96084.0,0.023]
[1732472176935,0.03345937,96087.0,96084.0,0.023]
[1732472177154,0.104062,96097.0,96085.0,0.023]
[1732472177401,0.0777,96103.0,96085.0,0.023]
[1732472177402,0.104059,96099.0,96087.0,0.18213948]
[1732472177611,0.104064,96095.0,96090.0,0.023]
[1732472177843,0.104065,96093.0,96092.0,0.023]
[1732472178249,0.104065,96093.0,96087.0,0.18213948]
[1732472178250,0.208114,96101.0,96087.0,0.18213948]
[1732472178446,0.104064,96095.0,96088.0,0.18213948]
[1732472178667,0.104069,96090.0,96087.0,0.18207478]
[1732472178916,0.104071,96088.0,96087.0,0.18207478]
[1732472179138,0.0777,96103.0,96078.0,0.18207478]
[1732472179139,0.13595947,96100.0,96078.0,0.18207478]
[1732472179359,0.13595947,96100.0,96073.0,0.18207478]
[1732472179360,0.208167,96077.0,96073.0,0.18207478]
[1732472179551,0.208167,96077.0,96072.0,0.0017088]
[1732472179552,0.104087,96073.0,96072.0,0.0017088]
[1732472180787,0.312253,96076.0,96072.0,0.0017088]
[1732472181072,0.104076,96084.0,96072.0,0.0017088]
[1732472181274,0.104078,96082.0,96073.0,0.023]
[1732472181482,0.208142,96088.0,96073.0,0.023]
[1732472181625,0.104073,96086.0,96073.0,0.023]
[1732472181839,0.0008544,96089.0,96073.0,0.023]
[1732472181840,0.104077,96083.0,96073.0,0.023]
[1732472182042,0.0008544,96089.0,96073.0,0.023]
[1732472182327,0.104086,96074.0,96073.0,0.023]
[1732472182705,0.208169,96076.0,96072.0,0.0017088]
[1732472182706,0.104087,96073.0,96072.0,0.0017088]
[1732472183467,0.03326385,96080.0,96072.0,0.0017088]
[1732472183468,0.208145,96087.0,96072.0,0.0017088]
[1732472183674,0.104084,96076.0,96072.0,0.0017088]
[1732472183893,0.104081,96079.0,96072.0,0.0017088]
[1732472184097,0.09396867,96089.0,96072.0,0.0017088]
[1732472184230,0.104087,96073.0,96072.0,0.0017088]
[1732472184930,0.09396867,96089.0,96072.0,0.0017088]
[1732472185138,0.104084,96076.0,96072.0,0.0017088]
[1732472185355,0.15,96093.0,96072.0,0.0017088]
[1732472185570,0.15,96093.0,96073.0,0.023]
[1732472185803,0.104081,96079.0,96073.0,0.023]
[1732472186065,0.13595947,96100.0,96073.0,0.023]
[1732472186251,0.25201427,96099.0,96073.0,0.023]
[1732472186479,0.25201427,96099.0,96074.0,0.1821684]
[1732472186480,0.15,96094.0,96074.0,0.1821684]
[1732472186717,0.2,96101.0,96074.0,0.1821684]
[1732472186718,0.15,96092.0,96075.0,0.023]
[1732472186934,0.208156,96082.0,96077.0,0.023]
[1732472187144,0.10408,96080.0,96075.0,0.023]
[1732472187388,0.15,96092.0,96076.0,0.1821684]
[1732472187389,0.728476,96091.0,96076.0,0.1821684]
[1732472187624,0.104084,96076.0,96075.0,0.1821684]
[1732472187831,0.104085,96075.0,96074.0,0.1821684]
[1732472188049,0.104087,96073.0,96072.0,0.0017088]
[1732472190753,0.094127,96073.0,96072.0,0.0017088]
[1732472192688,0.0779,96077.0,96050.0,0.1688772]
[1732472192911,0.104106,96056.0,96051.0,0.1688772]
[1732472193153,0.10201427,96076.0,96051.0,0.1688772]
[1732472193154,0.104107,96055.0,96051.0,0.1688772]
[1732472193372,0.104107,96055.0,96047.0,0.002]
[1732472193373,0.208217,96054.0,96047.0,0.22970647]
[1732472193586,0.208217,96054.0,96048.0,0.023]
[1732472193855,0.208211,96057.0,96048.0,0.023]
[1732472194068,0.13595947,96070.0,96048.0,0.023]
[1732472194286,0.104115,96047.0,96046.0,0.22770647]
[1732472194503,0.104115,96047.0,96037.0,0.002]
[1732472194504,0.104117,96045.0,96044.0,0.22770647]
[1732472194713,0.208188,96067.0,96041.0,0.22770647]
[1732472194923,0.104121,96042.0,96041.0,0.22770647]
[1732472195162,0.104122,96041.0,96040.0,0.22770647]
[1732472195585,0.208242,96042.0,96036.0,0.22770647]
[1732472195787,0.0779,96049.0,96033.0,0.22770647]
[1732472196000,0.104125,96038.0,96033.0,0.22770647]
[1732472196223,0.104125,96038.0,96034.0,0.22770647]
[1732472196458,0.208246,96041.0,96034.0,0.22770647]
[1732472196459,0.104124,96039.0,96034.0,0.22770647]
[1732472196659,0.104126,96038.0,96035.0,0.023]
[1732472196879,0.208242,96042.0,96035.0,0.023]
[1732472197098,0.104125,96038.0,96035.0,0.023]
[1732472197517,0.104125,96038.0,96037.0,0.22770647]
[1732472197948,0.104125,96038.0,96037.0,0.22959015]
[1732472198196,0.208229,96048.0,96032.0,0.023]
[1732472198428,0.208231,96047.0,96039.0,0.2295879]
[1732472198638,0.0779,96049.0,96037.0,0.2295879]
[1732472198639,0.002,96045.0,96037.0,0.2295879]
[1732472198884,0.002,96045.0,96003.0,0.062497]
[1732472198885,0.10201427,96044.0,96033.0,0.2295879]
[1732472199093,0.13595947,96043.0,96027.0,0.2295879]
[1732472199309,0.20827,96030.0,96026.0,0.2295879]
[1732472199525,0.104135,96029.0,96028.0,0.22991055]
[1732472200383,0.104143,96021.0,96015.0,0.27324776]
[1732472200598,0.104143,96022.0,96016.0,0.023]
[1732472200824,0.208262,96033.0,96016.0,0.29624776]
[1732472201053,0.10201427,96042.0,96025.0,0.22999721]
[1732472201272,0.104136,96028.0,96027.0,0.1839962]
[1732472201546,0.104137,96027.0,96026.0,0.22999721]
[1732472201744,0.104138,96026.0,96025.0,0.22999721]
[1732472201956,0.208266,96031.0,96017.0,0.27324776]
[1732472202171,0.104135,96029.0,96028.0,0.18406574]
[1732472202596,0.208268,96030.0,96027.0,0.1841971]
[1732472202826,0.104136,96028.0,96027.0,0.1841971]
[1732472203045,0.104137,96027.0,96026.0,0.18418188]
[1732472203468,0.104138,96026.0,96025.0,0.23008218]
[1732472203898,0.208274,96028.0,96024.0,0.23008218]
[1732472204126,0.104139,96025.0,96024.0,0.23008218]
[1732472204541,0.104146,96019.0,96018.0,0.27304776]
[1732472204974,0.104148,96017.0,96016.0,0.023]
[1732472205177,0.10415,96015.0,96014.0,0.023]
[1732472206717,0.208288,96021.0,96014.0,0.023]
[1732472206938,0.208269,96030.0,96014.0,0.023]
[1732472206939,0.208289,96020.0,96014.0,0.023]
[1732472207140,0.312433,96020.0,96019.0,0.23041903]
[1732472207372,0.19275598,96040.0,96019.0,0.2304164]
[1732472207578,0.104149,96016.0,96014.0,0.023]
[1732472208299,0.22690003,96040.0,96014.0,0.023]
[1732472208300,0.13615832,96040.0,96014.0,0.023]
[1732472208554,0.15,96039.0,96024.0,0.41459569]
[1732472208762,0.208256,96036.0,96027.0,0.18426475]
[1732472208972,0.15,96039.0,96025.0,0.18426475]
[1732472209187,0.15,96039.0,96026.0,0.18426475]
[1732472209419,0.0779,96049.0,96026.0,0.18426475]
[1732472209420,0.15,96041.0,96026.0,0.18426475]
[1732472209625,0.104135,96029.0,96028.0,0.18426475]
[1732472210266,0.208259,96034.0,96028.0,0.31146475]
[1732472210475,0.001,96058.0,96028.0,0.31146475]
[1732472210476,0.0761,96066.0,96035.0,0.023]
[1732472210691,0.10201427,96065.0,96040.0,0.18425711]
[1732472210939,0.208212,96056.0,96043.0,0.18425711]
[1732472211174,0.104112,96051.0,96043.0,0.18425711]
[1732472211394,0.0761,96074.0,96047.0,0.18425711]
[1732472211617,0.104105,96057.0,96049.0,0.18425711]
[1732472211840,0.208208,96058.0,96051.0,0.18425711]
[1732472212075,0.208198,96062.0,96053.0,0.18425711]
[1732472212294,0.208183,96069.0,96055.0,0.18425525]
[1732472212295,0.10201427,96069.0,96055.0,0.18425525]
[1732472212531,0.10201427,96069.0,96044.0,0.27832493]
[1732472212532,0.10201427,96069.0,96045.0,0.27632493]
[1732472212756,0.208188,96067.0,96054.0,0.18438605]
[1732472212963,0.10201427,96069.0,96054.0,0.18438605]
[1732472213189,0.10201427,96069.0,96051.0,0.23048256]
[1732472213407,0.208211,96057.0,96053.0,0.18438899]
[1732472213615,0.208211,96056.0,96054.0,0.18447797]
[1732472213819,0.208215,96055.0,96052.0,0.23048256]
[1732472214033,0.10201427,96069.0,96054.0,0.18449966]
[1732472214254,0.10201427,96069.0,96052.0,0.23048256]
[1732472214493,0.10201427,96069.0,96053.0,0.1844996]
[1732472214494,0.104108,96054.0,96053.0,0.1844996]
[1732472214733,0.104108,96054.0,96046.0,0.27632493]
[1732472214734,0.104114,96049.0,96046.0,0.27632493]
[1732472215000,0.104116,96047.0,96044.0,0.27832493]
[1732472215216,0.104116,96047.0,96038.0,0.10201427]
[1732472215217,0.03394135,96069.0,96045.0,0.30132493]
[1732472215455,0.104105,96056.0,96055.0,0.18458292]
[1732472215732,0.208209,96058.0,96054.0,0.23072865]
[1732472215937,0.104107,96055.0,96054.0,0.23072865]
[1732472216357,0.208209,96058.0,96053.0,0.23072865]
[1732472216570,0.104103,96058.0,96057.0,0.18467286]
[1732472216784,0.104104,96057.0,96056.0,0.18467286]
[1732472216994,0.2082,96062.0,96054.0,0.23084089]
[1732472217199,0.104104,96057.0,96056.0,0.18464886]
[1732472217409,0.000855,96058.0,96055.0,0.18464886]
[1732472217617,0.000855,96058.0,96056.0,0.18466306]
[1732472217851,0.312313,96057.0,96056.0,0.18466306]
[1732472218335,0.104105,96056.0,96055.0,0.18466306]
[1732472218552,0.208209,96057.0,96053.0,0.23084089]
[1732472218553,0.208209,96057.0,96053.0,0.18466306]
[1732472218796,0.104107,96055.0,96054.0,0.18466306]
[1732472219024,0.208211,96056.0,96053.0,0.18466306]
[1732472219251,0.104108,96054.0,96053.0,0.18466306]
[1732472221633,0.104109,96053.0,96052.0,0.18466306]
[1732472222254,0.104111,96051.0,96050.0,0.23084089]
[1732472222465,0.208211,96056.0,96045.0,0.025]
[1732472222466,0.208209,96057.0,96049.0,0.23084089]
[1732472222677,0.104109,96053.0,96052.0,0.18465721]
[1732472222915,0.10411,96052.0,96049.0,0.23084089]
[1732472223145,0.208211,96056.0,96049.0,0.23084089]
[1732472223486,0.104112,96051.0,96049.0,0.23084089]
[1732472224058,0.104112,96051.0,96050.0,0.23084089]
[1732472224503,0.104112,96051.0,96045.0,0.025]
[1732472224715,0.104112,96051.0,96050.0,0.23095319]
[1732472224950,0.104112,96051.0,96050.0,0.23095586]
[1732472225192,0.104112,96051.0,96045.0,0.025]
[1732472225817,0.104112,96051.0,96050.0,0.23100872]
[1732472226272,0.104111,96051.0,96050.0,0.18482402]
[1732472226506,0.104111,96051.0,96015.0,0.31179041]
[1732472226507,0.104113,96049.0,96046.0,0.18482402]
[1732472226732,0.104118,96044.0,96043.0,0.18482402]
[1732472226977,0.0769,96057.0,96039.0,0.18482402]
[1732472226978,0.208233,96046.0,96039.0,0.18482402]
[1732472227196,0.104125,96038.0,96037.0,0.18489166]
[1732472227451,0.13600437,96040.0,96033.0,0.18489166]
[1732472227692,0.13600437,96040.0,96023.0,0.27714703]
[1732472227693,0.208248,96039.0,96023.0,0.23101712]
[1732472227923,0.208248,96039.0,96021.0,0.23119139]
[1732472227924,0.104142,96022.0,96021.0,0.23119139]
[1732472228137,0.208248,96039.0,96020.0,0.23119654]
[1732472228138,0.0769,96036.0,96020.0,0.23119654]
[1732472228376,0.0769,96036.0,96014.0,0.002]
[1732472228377,0.104144,96020.0,96019.0,0.23119654]
[1732472228615,0.104146,96019.0,96018.0,0.23123752]
[1732472228827,0.104147,96018.0,96017.0,0.23123752]
[1732472229472,0.104147,96018.0,96017.0,0.23124183]
[1732472229693,0.104148,96017.0,96014.0,0.002]
[1732472229954,0.208287,96021.0,96014.0,0.002]
[1732472230168,0.208259,96034.0,96014.0,0.002]
[1732472230411,0.208257,96035.0,96014.0,0.002]
[1732472230631,0.24247133,96035.0,96014.0,0.002]
[1732472230885,0.208277,96026.0,96014.0,0.002]
[1732472231118,0.104142,96023.0,96014.0,0.002]
[1732472231329,0.208281,96024.0,96015.0,0.23124183]
[1732472231536,0.208284,96023.0,96017.0,0.23124183]
[1732472231745,0.11041497,96036.0,96016.0,0.23124183]
[1732472231964,0.11041497,96036.0,96017.0,0.23124183]
[1732472231965,0.208257,96035.0,96017.0,0.23124183]
[1732472232184,0.11041497,96036.0,96017.0,0.23124183]
[1732472232392,0.104145,96020.0,96017.0,0.23124183]
[1732472232824,0.104146,96019.0,96017.0,0.23124183]
[1732472233033,0.104144,96021.0,96016.0,0.23124183]
[1732472233263,0.11041497,96036.0,96016.0,0.23124183]
[1732472233264,0.15,96035.0,96016.0,0.23124183]
[1732472233474,0.15,96035.0,96014.0,0.002]
[1732472233475,0.104146,96019.0,96018.0,0.23124183]
[1732472233739,0.104146,96019.0,96018.0,0.23134189]
[1732472233948,0.208285,96022.0,96014.0,0.002]
[1732472233949,0.104144,96021.0,96014.0,0.002]
[1732472234184,0.03351497,96036.0,96019.0,0.23333726]
[1732472234391,0.03351497,96036.0,96015.0,0.10201427]
[1732472234392,0.104124,96039.0,96026.0,0.28335825]
[1732472234608,0.104118,96045.0,96035.0,0.23128925]
[1732472235114,0.2090697,96055.0,96034.0,0.002]
[1732472235115,0.03544469,96055.0,96038.0,0.23128925]
[1732472235540,0.03544469,96055.0,96041.0,0.18503323]
[1732472235764,0.416432,96054.0,96041.0,0.18503323]
[1732472235983,0.104121,96042.0,96041.0,0.18503323]
[1732472236187,0.15,96053.0,96034.0,0.002]
[1732472236188,0.104122,96041.0,96040.0,0.18503323]
[1732472236615,0.104127,96036.0,96035.0,0.18503323]
[1732472236827,0.208227,96049.0,96032.0,0.23128925]
[1732472236828,0.09069346,96040.0,96032.0,0.18510446]
[1732472237038,0.104134,96030.0,96029.0,0.18510446]
[1732472237507,0.104136,96028.0,96027.0,0.23128925]
[1732472237714,0.104138,96026.0,96025.0,0.23128925]
[1732472238355,0.104139,96025.0,96024.0,0.23128925]
[1732472238591,0.104142,96022.0,96017.0,0.2774902]
[1732472238864,0.104141,96023.0,96016.0,0.2774902]
[1732472239083,0.104144,96021.0,96016.0,0.2774902]
[1732472239290,0.104144,96021.0,96015.0,0.2794902]
[1732472239508,0.09069346,96030.0,96015.0,0.2794902]
[1732472239729,0.104138,96026.0,96025.0,0.18519103]
[1732472240181,0.104139,96025.0,96024.0,0.18519103]
[1732472240391,0.228274,96027.0,96022.0,0.23148879]
[1732472240605,0.104141,96023.0,96022.0,0.23148879]
[1732472241022,0.104142,96022.0,96021.0,0.23148879]
[1732472241522,0.104148,96018.0,96013.0,0.2794902]
[1732472241786,0.104148,96018.0,96013.0,0.002]
[1732472242012,0.208291,96020.0,96013.0,0.002]
[1732472242013,0.104151,96015.0,96013.0,0.002]
[1732472242226,0.10415,96015.0,96013.0,0.002]
[1732472242436,0.104149,96017.0,96016.0,0.0017098]
[1732472246721,0.13771034,96017.0,96016.0,0.0017098]
[1732472248517,0.13770934,96017.0,96016.0,0.0017098]
[1732472250316,0.104148,96017.0,96016.0,0.0017098]
[1732472250757,0.02,96027.0,96016.0,0.0017098]
[1732472251001,0.02,96027.0,96016.0,0.18684692]
[1732472251238,0.02,96027.0,96018.0,0.18513712]
[1732472251726,0.02,96027.0,96016.0,0.2331312]
[1732472251727,0.02,96027.0,96023.0,0.18513712]
[1732472252150,0.02,96027.0,96024.0,0.18513712]
[1732472252367,0.02,96027.0,96023.0,0.18513712]
[1732472252577,0.02,96027.0,96024.0,0.002]
[1732472252808,0.02,96027.0,96026.0,0.064483]
[1732472253252,0.02,96027.0,96026.0,0.16649727]
[1732472253464,0.02,96027.0,96026.0,0.44420295]
[1732472253675,0.02,96027.0,96026.0,0.56780295]
[1732472253902,0.02,96027.0,96026.0,0.31309727]
[1732472255055,0.02,96027.0,96026.0,0.29009727]
[1732472255524,0.02,96027.0,96026.0,0.22761427]
[1732472255778,0.02,96027.0,96026.0,0.63698733]
[1732472256032,0.02,96027.0,96026.0,0.002]
[1732472256490,0.02,96027.0,96024.0,0.27932983]
[1732472256724,0.02,96027.0,96018.0,0.27732983]
[1732472256960,0.02,96027.0,96016.0,0.0037098]
[1732472256961,0.104138,96026.0,96016.0,0.0037098]
[1732472257210,0.02,96027.0,96025.0,0.18488185]
[1732472257422,0.104138,96026.0,96025.0,0.18488185]
[1732472257867,0.10414,96024.0,96023.0,0.23110231]
[1732472258079,0.208278,96026.0,96022.0,0.23110231]
[1732472258379,0.104138,96026.0,96025.0,0.18489036]
[1732472258624,0.104138,96026.0,96024.0,0.18489036]
[1732472258857,0.02,96027.0,96022.0,0.23110231]
[1732472258858,0.104141,96023.0,96022.0,0.23110231]
[1732472259075,0.104143,96021.0,96020.0,0.23110231]
[1732472259301,0.02,96027.0,96019.0,0.23114871]
[1732472259526,0.104144,96020.0,96018.0,0.23114871]
[1732472259752,0.104144,96020.0,96019.0,0.23114871]
[1732472260627,0.208281,96024.0,96016.0,0.0017098]
[1732472260855,0.104146,96020.0,96019.0,0.23125618]